bitfinex/quotes_ETHUSD_20250526
["timestamp","ask_amount","ask_price","bid_price","bid_amount"]
[1748293955971,4.87241333,2563.5,2562.8,0.36773702]
[1748293956175,0.04877025,2563.4,2562.9,0.36773702]
[1748293956376,0.53601158,2563.4,2562.9,0.36773702]
[1748293957130,0.53601158,2563.4,2562.5,0.36773702]
[1748293958075,0.48724133,2563.4,2562.5,0.36773702]
[1748293958414,0.53601422,2563.4,2562.5,0.36773702]
[1748293958620,0.54084276,2563.3,2562.4,0.36773702]
[1748293959115,4.6698,2563.5,2562.4,4.46935035]
[1748293960418,4.6698,2563.5,2562.5,0.36773702]
[1748293961932,8.8678,2563.5,2562.5,0.36773702]
[1748293962097,8.8678,2563.5,2562.5,8.36773702]
[1748293963805,8.8678,2563.5,2562.6,0.36773702]
[1748293964043,0.88678,2563.4,2562.6,0.36773702]
[1748293969249,0.8139,2563.3,2562.6,0.36773702]
[1748293970528,0.8139,2563.3,2562.4,0.36773702]
[1748293971628,0.8139,2563.3,2562.5,0.36773702]
[1748293972949,0.8139,2563.3,2562.4,0.36773702]
[1748293973458,2.20392933,2563.3,2562.4,0.36773702]
[1748293974247,2.20392933,2563.3,2562.5,0.36773702]
[1748293975538,2.20392933,2563.3,2562.4,0.36773702]
[1748293976041,0.7739,2563.2,2562.4,0.36773702]
[1748293976669,0.7739,2563.2,2562.5,0.36773702]
[1748293976867,0.7639,2563.1,2562.5,0.36773702]
[1748293977073,0.7639,2562.9,2562.5,0.36773702]
[1748293977768,0.7639,2562.9,2562.3,0.36773702]
[1748293979183,0.7639,2562.9,2562.1,0.36773702]
[1748293980350,0.7639,2562.9,2562.2,0.36773702]
[1748293980551,0.04877856,2562.8,2562.2,0.36773702]
[1748293980788,4.10161333,2562.9,2562.2,0.36773702]
[1748293980973,4.86551333,2562.7,2562.2,0.36773702]
[1748293981282,0.7639,2562.6,2562.2,0.36773702]
[1748293982153,0.7639,2562.6,2561.8,0.36773702]
[1748293983876,0.84048905,2562.5,2561.8,0.36773702]
[1748293984083,0.7917,2562.5,2561.8,0.36773702]
[1748293984594,0.7917,2562.5,2561.7,8.0]
[1748293989494,0.8092,2562.3,2561.3,0.45929922]
[1748293989823,0.8092,2562.1,2561.3,8.45929922]
[1748293990028,0.04879479,2562.0,2561.3,8.45929922]
[1748293990199,0.04879479,2562.0,2561.3,0.36815193]
[1748293990386,0.04879479,2562.0,2561.3,8.36815193]
[1748293990590,0.8092,2562.1,2561.3,8.36815193]
[1748293991345,0.8092,2562.1,2561.3,8.0]
[1748293991843,1.28022,2562.1,2561.3,8.0]
[1748293992239,0.7511,2562.0,2561.3,8.0]
[1748293992610,0.7511,2562.0,2561.7,0.66666667]
[1748293999526,4.191,2562.3,2562.0,0.2489]
[1748294000249,8.092,2562.3,2562.0,0.2489]
[1748294001358,4.191,2562.3,2562.0,0.2489]
[1748294001665,8.092,2562.3,2562.0,0.2489]
[1748294002653,0.7681,2562.2,2562.0,0.2489]
[1748294009538,0.04879634,2562.1,2562.0,0.2489]
[1748294009740,5.49880967,2562.1,2562.0,0.2489]
[1748294009947,5.45001333,2562.1,2562.0,0.2489]
[1748294011165,13.45001333,2562.1,2562.0,0.2489]
[1748294011427,15.92421487,2562.1,2562.0,0.2489]
[1748294012824,23.69421487,2562.1,2562.0,0.2489]
[1748294013179,4.85241333,2561.8,2561.7,0.66666667]
[1748294013327,16.75441333,2561.8,2561.7,0.66666667]
[1748294013530,21.32673532,2561.8,2561.7,0.49524924]
[1748294014061,0.7654,2561.4,2561.1,0.1]
[1748294014233,0.7654,2561.2,2561.1,0.1]
[1748294014564,4.6674,2561.2,2561.1,0.1]
[1748294017548,5.266219,2561.2,2561.1,0.1]
[1748294017731,7.39830223,2561.2,2561.1,0.1]
[1748294018961,7.34948323,2561.2,2561.1,0.1]
[1748294020652,7.39830544,2561.2,2561.1,0.1]
[1748294020828,3.49630544,2561.2,2561.1,0.1]
[1748294021026,7.34948323,2561.2,2561.1,0.1]
[1748294021454,7.7351617,2561.2,2561.1,0.1]
[1748294025288,15.7351617,2561.2,2561.1,0.1]
[1748294025680,18.0771617,2561.2,2561.1,0.1]
[1748294025977,22.1841617,2561.2,2561.1,0.1]
[1748294028696,14.1751617,2561.2,2561.1,0.1]
[1748294028866,19.3711617,2561.2,2561.1,0.1]
[1748294029171,19.9211617,2561.2,2561.1,0.1]
[1748294029353,16.0181617,2561.2,2561.1,0.1]
[1748294029654,19.9211617,2561.2,2561.1,0.1]
[1748294030957,16.0181617,2561.2,2561.1,0.1]
[1748294031143,19.9211617,2561.2,2561.1,0.1]
[1748294034887,19.53548323,2561.2,2561.1,0.1]
[1748294035287,19.93321271,2561.2,2561.1,0.1]
[1748294035587,27.70321271,2561.2,2561.1,0.1]
[1748294036689,31.80482604,2561.2,2561.1,0.1]
[1748294038189,19.38421271,2561.2,2561.1,0.1]
[1748294040762,11.29521271,2561.2,2561.1,0.1]
[1748294040966,19.38421271,2561.2,2561.1,0.1]
[1748294041199,11.38421271,2561.2,2561.1,0.1]
[1748294041400,9.25212948,2561.2,2561.1,0.1]
[1748294042186,1.16312948,2561.2,2561.1,0.1]
[1748294042387,9.30094884,2561.2,2561.1,0.1]
[1748294042598,9.25212948,2561.2,2561.1,0.1]
[1748294045689,8.0,2561.4,2561.1,0.1]
[1748294045996,4.177,2561.2,2561.1,0.1]
[1748294047081,4.22581712,2561.2,2561.1,0.1]
[1748294049313,4.177,2561.2,2561.1,0.1]
[1748294049521,8.081,2561.2,2561.1,0.1]
[1748294050378,4.177,2561.2,2561.1,0.1]
[1748294050579,8.081,2561.2,2561.1,0.1]
[1748294051582,8.8891,2561.2,2561.1,0.1]
[1748294051781,12.99071333,2561.2,2561.1,0.1]
[1748294056219,13.54071333,2561.2,2561.1,0.1]
[1748294056423,14.33711333,2561.2,2561.1,0.1]
[1748294062512,22.33711333,2561.2,2561.1,0.1]
[1748294063827,24.67911333,2561.2,2561.1,0.1]
[1748294064003,32.44911333,2561.2,2561.1,0.1]
[1748294070203,24.36811333,2561.2,2561.1,0.1]
[1748294070535,32.44911333,2561.2,2561.1,0.1]
[1748294071328,36.55611333,2561.2,2561.1,0.1]
[1748294071534,32.44911333,2561.2,2561.1,0.1]
[1748294079045,32.44211333,2561.2,2561.1,0.1]
[1748294081843,36.54911333,2561.2,2561.1,0.1]
[1748294082143,32.44211333,2561.2,2561.1,0.1]
[1748294082310,4.17,2561.2,2561.1,0.8789]
[1748294082511,8.074,2561.2,2561.1,0.8789]
[1748294082953,1.96661571,2561.4,2561.1,0.8789]
[1748294083245,8.074,2561.2,2561.1,0.8789]
[1748294085319,4.17,2561.3,2561.1,0.8789]
[1748294085519,8.074,2561.3,2561.1,0.8789]
[1748294085748,4.17,2561.3,2561.1,0.8789]
[1748294086051,8.074,2561.3,2561.1,0.8789]
[1748294087021,1.96661571,2561.4,2561.1,0.8789]
[1748294088923,8.431,2561.5,2561.1,0.8789]
[1748294091662,4.15041865,2561.4,2561.1,0.8789]
[1748294091858,4.10161333,2561.4,2561.1,0.1]
[1748294092060,4.10161333,2561.2,2561.1,0.1]
[1748294096662,6.44361333,2561.2,2561.1,0.1]
[1748294096871,4.10161333,2561.2,2561.1,0.1]
[1748294097077,4.59344466,2561.2,2561.1,0.1]
[1748294099480,0.49183133,2561.2,2561.1,0.1]
[1748294101295,0.54064683,2561.2,2561.1,0.1]
[1748294101493,0.49183133,2561.2,2561.1,0.1]
[1748294102275,4.59344466,2561.2,2561.1,0.1]
[1748294102590,1.3775,2561.2,2561.1,0.1]
[1748294102772,13.47911333,2561.2,2561.1,0.1]
[1748294104071,15.82111333,2561.2,2561.1,0.1]
[1748294106611,14.99361333,2561.2,2561.1,0.1]
[1748294106908,24.63948466,2561.2,2561.1,0.1]
[1748294107263,33.21458466,2561.2,2561.1,0.1]
[1748294108297,28.50548466,2561.2,2561.1,0.1]
[1748294108477,32.40948466,2561.2,2561.1,0.1]
[1748294108674,24.34348466,2561.2,2561.1,0.1]
[1748294108882,25.96587133,2561.2,2561.1,0.1]
[1748294109200,22.06187133,2561.2,2561.1,0.1]
[1748294109367,25.96587133,2561.2,2561.1,0.1]
[1748294111347,14.06187133,2561.2,2561.1,0.1]
[1748294111612,17.96587133,2561.2,2561.1,0.1]
[1748294115176,9.34987133,2561.2,2561.1,0.1]
[1748294115383,4.162,2561.2,2561.1,0.8925]
[1748294115699,8.066,2561.2,2561.1,0.8925]
[1748294122235,8.55,2561.7,2561.1,0.8925]
[1748294122531,4.162,2561.3,2561.1,0.8925]
[1748294124324,4.162,2561.9,2561.1,0.8925]
[1748294124531,3.904,2561.8,2561.1,0.8925]
[1748294124906,3.904,2561.8,2561.1,4.99411333]
[1748294125120,3.904,2561.8,2561.2,0.7975]
[1748294128001,1.96661571,2562.2,2561.2,0.7975]
[1748294128198,8.065,2562.1,2561.4,8.0]
[1748294128502,8.065,2562.1,2561.5,0.7873]
[1748294129634,4.15040626,2562.0,2561.5,0.7873]
[1748294129937,4.10161333,2562.0,2561.5,0.7873]
[1748294131847,4.15041235,2562.0,2561.5,0.7873]
[1748294134661,4.10161333,2562.0,2561.5,0.7873]
[1748294135144,4.15041234,2562.0,2561.5,0.7873]
[1748294137751,4.10161333,2562.0,2561.5,0.7873]
[1748294137957,9.91136157,2562.1,2561.5,0.7873]
[1748294138360,4.155,2562.1,2561.5,0.7873]
[1748294138562,8.057,2562.1,2561.5,0.7873]
[1748294142689,4.155,2562.1,2561.5,0.7873]
[1748294142885,3.902,2562.0,2561.5,0.7873]
[1748294143685,3.902,2561.9,2561.5,0.7873]
[1748294145495,4.155,2562.1,2561.5,0.7873]
[1748294145658,3.902,2562.0,2561.5,0.7873]
[1748294147161,4.155,2562.1,2561.5,0.7873]
[1748294147360,3.902,2562.0,2561.5,0.7873]
[1748294152402,4.155,2562.3,2561.5,0.7873]
[1748294152610,3.902,2562.1,2561.5,0.7873]
[1748294155090,3.902,2562.1,2561.6,0.3695608]
[1748294155830,3.902,2562.1,2561.7,0.8034]
[1748294159812,4.155,2562.3,2561.7,0.8034]
[1748294160017,11.924,2562.5,2561.7,0.8034]
[1748294160318,3.902,2562.4,2561.7,0.8034]
[1748294160545,3.902,2562.4,2561.8,0.36950821]
[1748294160751,3.902,2562.4,2561.9,0.7518]
[1748294163678,3.902,2562.3,2561.9,0.7518]
[1748294170276,4.10161333,2562.1,2561.5,0.8055]
[1748294170447,9.58621333,2562.3,2561.5,0.8055]
[1748294170647,3.902,2562.3,2561.5,0.8055]
[1748294171058,12.65111333,2562.5,2561.5,0.8055]
[1748294171347,8.05,2562.4,2561.5,0.8055]
[1748294172396,4.148,2562.4,2561.5,0.8055]
[1748294172596,3.902,2562.3,2561.5,0.8055]
[1748294173105,4.148,2562.5,2561.6,0.8106]
[1748294173266,3.902,2562.4,2561.6,0.8106]
[1748294173767,4.10161333,2562.7,2561.6,0.8106]
[1748294173970,3.902,2562.6,2561.8,0.7612]
[1748294174511,8.05,2562.7,2561.8,0.7612]
[1748294175562,8.049,2562.7,2561.8,0.7612]
[1748294177625,4.10161333,2563.0,2561.8,0.7612]
[1748294177767,3.901,2562.8,2561.8,0.7612]
[1748294182637,4.148,2562.9,2562.0,8.0]
[1748294182937,3.901,2562.8,2562.1,0.8106]
[1748294188458,8.00261333,2562.8,2562.1,0.8106]
[1748294188763,0.0487812,2562.7,2562.1,0.8106]
[1748294188961,8.00261333,2562.8,2562.1,0.8106]
[1748294189256,9.29660466,2562.8,2562.1,0.8106]
[1748294189824,5.19499133,2562.8,2562.1,0.8106]
[1748294193773,4.10161333,2562.6,2562.1,0.8106]
[1748294194167,9.29660466,2562.8,2562.1,0.8106]
[1748294197783,1.29399133,2562.8,2562.1,0.8106]
[1748294198085,4.142,2562.7,2562.1,0.8106]
[1748294217209,0.04878506,2562.6,2562.1,0.8106]
[1748294219331,4.142,2562.7,2562.1,0.8106]
[1748294220736,4.65161333,2562.6,2562.1,0.8106]
[1748294220942,4.65161333,2562.6,2561.6,0.45929922]
[1748294220943,4.70039835,2562.6,2561.7,0.8016]
[1748294221124,0.55,2562.4,2561.7,0.8016]
[1748294221330,0.59879339,2562.4,2561.7,0.8016]
[1748294222446,4.70040672,2562.4,2561.7,0.8016]
[1748294222740,4.65161333,2562.2,2561.7,0.8016]
[1748294223035,3.901,2562.1,2561.7,0.8016]
[1748294225645,3.901,2562.1,2561.3,0.7741]
[1748294225646,0.55,2561.7,2561.3,0.7741]
[1748294225812,0.59880578,2561.7,2561.3,0.7741]
[1748294226018,0.59880578,2561.7,2561.2,1.9433234]
[1748294226556,4.10161333,2561.4,2561.2,1.9433234]
[1748294226712,8.594,2561.3,2561.2,1.9433234]
[1748294227140,8.594,2561.3,2561.1,0.1]
[1748294232769,0.55,2561.2,2561.1,0.1]
[1748294232972,4.70042604,2561.2,2561.1,0.1]
[1748294233129,6.75771593,2561.2,2561.1,0.1]
[1748294233965,2.6561026,2561.2,2561.1,0.1]
[1748294236586,18.4261026,2561.2,2561.1,0.1]
[1748294241070,22.5331026,2561.2,2561.1,0.1]
[1748294241258,18.4261026,2561.2,2561.1,0.1]
[1748294253653,20.7691026,2561.2,2561.1,0.1]
[1748294255858,0.55,2561.0,2560.1,0.1]
[1748294256058,0.55,2560.2,2560.1,0.1]
[1748294256591,4.10161333,2560.3,2560.2,0.8032]
[1748294256592,0.55,2560.3,2560.2,0.8032]
[1748294256752,8.594,2560.3,2560.2,0.8032]
[1748294260406,8.594,2560.3,2560.1,0.1]
[1748294263791,0.55,2560.3,2560.1,0.1]
[1748294263953,8.589,2560.2,2560.1,0.1]
[1748294265309,10.03303605,2560.2,2560.1,0.1]
[1748294271040,14.13464938,2560.2,2560.1,0.1]
[1748294273515,10.03303605,2560.2,2560.1,0.1]
[1748294274645,8.59,2560.2,2560.1,0.1]
[1748294275531,4.686,2560.2,2560.1,0.1]
[1748294275846,8.591,2560.2,2560.1,0.1]
[1748294280858,0.55,2560.2,2560.1,0.1]
[1748294281059,8.041,2560.2,2560.1,0.1]
[1748294281566,8.041,2560.2,2560.1,0.9142]
[1748294285263,4.136,2560.2,2560.1,0.9142]
[1748294285566,8.041,2560.2,2560.1,0.9142]
[1748294285979,8.5917,2560.8,2560.1,0.9142]
[1748294286139,4.136,2560.4,2560.1,0.9142]
[1748294287051,0.55,2560.3,2560.1,0.9142]
[1748294287258,4.455,2560.2,2560.1,0.9142]
[1748294288195,3.905,2560.2,2560.1,0.9142]
[1748294288345,8.041,2560.2,2560.1,0.9142]
[1748294290068,3.905,2560.2,2560.1,0.9142]
[1748294294682,3.905,2560.2,2560.1,0.1]
[1748294294884,5.2586,2560.2,2560.1,0.1]
[1748294295850,5.30743203,2560.2,2560.1,0.1]
[1748294296051,21.8579,2560.2,2560.1,0.1]
[1748294296750,24.2009,2560.2,2560.1,0.1]
[1748294300388,24.39751333,2560.2,2560.1,0.1]
[1748294300595,32.43351333,2560.2,2560.1,0.1]
[1748294309004,1.3641,2559.7,2559.5,0.66666667]
[1748294309207,24.37546414,2559.6,2559.5,0.66666667]
[1748294309383,24.32661333,2559.6,2559.5,0.66666667]
[1748294315628,26.66961333,2559.6,2559.5,0.66666667]
[1748294315808,24.32761333,2559.6,2559.5,0.66666667]
[1748294315981,27.07608466,2559.6,2559.5,0.66666667]
[1748294316381,31.20808466,2559.6,2559.5,0.66666667]
[1748294316678,27.30208466,2559.6,2559.5,0.66666667]
[1748294316938,31.20808466,2559.6,2559.5,0.66666667]
[1748294324528,34.30148466,2559.6,2559.5,0.66666667]
[1748294324722,0.55,2559.3,2559.1,0.1]
[1748294325034,5.45087247,2559.2,2559.1,0.1]
[1748294325235,5.40201333,2559.2,2559.1,0.1]
[1748294326863,7.74501333,2559.2,2559.1,0.1]
[1748294329168,15.51501333,2559.2,2559.1,0.1]
[1748294329371,17.47721466,2559.2,2559.1,0.1]
[1748294329862,21.38321466,2559.2,2559.1,0.1]
[1748294332881,21.78232374,2559.2,2559.1,0.1]
[1748294336502,33.92052374,2559.2,2559.1,0.1]
[1748294337393,3.6746,2558.9,2558.8,6.34090909]
[1748294337696,27.67521333,2558.9,2558.8,6.34090909]
[1748294338211,27.67521333,2558.9,2558.1,0.1]
[1748294338212,35.88382666,2558.9,2558.1,0.1]
[1748294338372,4.65161333,2558.2,2558.1,0.1]
[1748294338579,20.68761333,2558.2,2558.1,0.1]
[1748294340193,30.80061333,2558.2,2558.1,0.1]
[1748294340394,20.42161333,2558.2,2558.1,0.1]
[1748294340559,24.356,2558.2,2558.1,0.1]
[1748294340960,8.32,2558.2,2558.1,0.8509]
[1748294341161,26.0072,2558.2,2558.1,0.1]
[1748294341894,30.10881333,2558.2,2558.1,0.1]
[1748294342100,32.45181333,2558.2,2558.1,0.1]
[1748294342402,36.55881333,2558.2,2558.1,0.1]
[1748294342758,32.45381333,2558.2,2558.1,0.1]
[1748294342957,36.56081333,2558.2,2558.1,0.1]
[1748294344867,8.55,2558.1,2557.3,0.7833]
[1748294345197,0.55,2557.6,2557.3,0.7833]
[1748294345397,0.55,2557.4,2557.3,0.7833]
[1748294350494,0.55,2557.4,2557.1,0.8673]
[1748294350670,4.10161333,2557.3,2557.1,0.1]
[1748294351095,0.04888967,2557.3,2557.1,0.1]
[1748294351409,8.32,2557.4,2557.1,0.1]
[1748294351608,10.48734362,2557.4,2557.1,0.1]
[1748294351806,0.04888981,2557.3,2557.1,0.1]
[1748294352432,10.48734362,2557.4,2557.1,0.1]
[1748294352594,10.48734362,2557.4,2557.2,0.7991]
[1748294352595,8.32,2557.4,2557.2,0.7991]
[1748294352798,8.035,2557.3,2557.2,0.7991]
[1748294353614,8.585,2557.3,2557.2,0.7991]
[1748294354491,4.677,2557.3,2557.2,0.7991]
[1748294354833,8.585,2557.3,2557.2,0.7991]
[1748294355134,10.63066133,2557.3,2557.2,0.7991]
[1748294355639,8.585,2557.3,2557.2,0.7991]
[1748294356004,0.55,2557.2,2557.1,0.1]
[1748294360410,23.6447998,2557.2,2557.1,0.1]
[1748294360612,0.8313,2557.1,2556.4,0.141]
[1748294360825,0.55,2556.5,2556.4,0.141]
[1748294361009,8.586,2556.5,2556.4,0.141]
[1748294361211,23.86191333,2556.5,2556.4,0.141]
[1748294361398,11.7243,2556.5,2556.4,0.141]
[1748294361596,17.4173,2556.5,2556.4,0.141]
[1748294361795,20.41359133,2556.5,2556.4,0.141]
[1748294363126,24.51620466,2556.5,2556.4,0.141]
[1748294365126,24.51720466,2556.5,2556.4,0.141]
[1748294370168,24.51920466,2556.5,2556.4,0.141]
[1748294370908,16.47920466,2556.5,2556.4,0.141]
[1748294371054,24.51920466,2556.5,2556.4,0.141]
[1748294371592,24.51920466,2556.5,2556.4,0.091]
[1748294378127,15.64790466,2556.5,2556.4,0.091]
[1748294378326,12.679,2556.5,2556.4,0.091]
[1748294378633,16.59,2556.5,2556.4,0.091]
[1748294379532,24.36,2556.5,2556.4,0.091]
[1748294381234,24.377,2556.5,2556.4,0.091]
[1748294382733,16.32,2556.5,2556.4,0.091]
[1748294382936,15.827,2556.5,2556.4,0.8969]
[1748294383439,16.377,2556.5,2556.4,0.8969]
[1748294386844,8.444,2556.7,2556.4,0.8969]
[1748294387044,4.146,2556.5,2556.4,0.8969]
[1748294387282,4.146,2556.5,2556.4,0.8469]
[1748294387842,8.057,2556.5,2556.4,0.8469]
[1748294389230,4.146,2556.5,2556.4,0.8469]
[1748294389423,8.057,2556.5,2556.4,0.8469]
[1748294390442,8.444,2556.7,2556.4,1.51356667]
[1748294390605,3.911,2556.6,2556.4,0.8469]
[1748294390999,11.916,2557.2,2556.5,0.8082]
[1748294391309,3.911,2557.1,2556.5,0.8082]
[1748294391509,4.10161333,2557.7,2556.5,0.8082]
[1748294391736,4.146,2557.6,2556.7,0.7627]
[1748294391904,0.55,2557.5,2556.7,0.7627]
[1748294392103,3.911,2557.4,2556.7,0.7627]
[1748294392625,3.911,2557.3,2556.7,0.7627]
[1748294393198,7.77,2557.8,2556.8,0.03910441]
[1748294393399,4.146,2557.7,2556.9,0.8096]
[1748294393747,3.911,2557.6,2556.9,0.8096]
[1748294394603,4.146,2557.5,2557.1,0.8096]
[1748294394954,3.91,2557.4,2557.1,0.8096]
[1748294395448,0.55,2557.9,2557.1,0.8096]
[1748294395653,4.146,2557.8,2557.3,0.8096]
[1748294395995,3.91,2557.7,2557.3,0.8096]
[1748294397016,4.146,2557.8,2557.3,0.8096]
[1748294397226,3.91,2557.6,2557.3,0.8096]
[1748294397429,3.91,2557.6,2557.3,0.7894]
[1748294408872,3.91,2557.6,2557.0,0.8297]
[1748294414563,4.6865,2557.6,2557.0,0.8297]
[1748294422732,4.127,2557.5,2557.0,0.8297]
[1748294425356,4.127,2557.5,2556.8,0.7649]
[1748294425558,5.00835,2557.5,2556.8,0.7649]
[1748294426160,5.00835,2557.5,2556.9,0.37277512]
[1748294427262,5.00835,2557.5,2556.8,0.7649]
[1748294429470,5.00835,2557.5,2556.9,0.37316933]
[1748294430486,5.00835,2557.5,2557.0,0.37316933]
[1748294431688,5.00835,2557.5,2556.8,0.7649]
[1748294432263,0.969485,2557.4,2556.8,0.7649]
[1748294432696,0.969485,2557.4,2556.9,0.37379798]
[1748294433593,0.7873,2557.3,2557.0,0.37379798]
[1748294435069,0.7873,2557.3,2556.7,8.0]
[1748294436043,0.7873,2557.3,2556.6,1.27529922]
[1748294436242,0.7873,2557.3,2556.6,0.45929922]
[1748294436682,0.7873,2557.3,2556.4,9.46740001]
[1748294436683,0.7873,2557.3,2556.7,0.37383306]
[1748294437644,0.7873,2557.3,2556.4,8.857]
[1748294438286,0.83618429,2557.3,2556.4,8.857]
[1748294438757,0.7873,2557.3,2556.4,8.857]
[1748294438962,0.7873,2557.3,2556.5,0.37350752]
[1748294440255,0.7873,2557.3,2556.6,0.37350752]
[1748294441457,0.83618437,2557.3,2556.4,8.041]
[1748294441656,0.7838,2557.1,2556.4,0.041]
[1748294441979,0.7838,2556.8,2556.4,0.041]
[1748294442180,0.7838,2556.6,2556.4,0.041]
[1748294442360,3.909,2556.5,2556.4,0.041]
[1748294444484,8.91688,2556.5,2556.4,0.041]
[1748294446691,9.46688,2556.5,2556.4,0.041]
[1748294450053,5.00788,2556.5,2556.4,0.041]
[1748294450254,8.036,2556.5,2556.4,0.041]
[1748294451995,3.91,2556.5,2556.4,0.041]
[1748294454559,0.7505,2557.1,2556.4,0.041]
[1748294454906,1.3151485,2557.3,2556.7,4.10161333]
[1748294455053,4.127,2557.0,2556.7,4.10161333]
[1748294455254,3.91,2557.1,2556.5,4.92351333]
[1748294455956,3.91,2557.0,2556.5,4.92351333]
[1748294456780,3.91,2557.0,2556.5,0.8219]
[1748294457890,0.55,2557.2,2556.5,0.8219]
[1748294458096,4.127,2556.9,2556.5,0.8219]
[1748294459497,3.91,2557.1,2556.7,4.10161333]
[1748294459498,4.127,2557.1,2556.7,4.10161333]
[1748294459805,4.127,2557.1,2556.8,0.7674]
[1748294459959,9.2438,2557.8,2556.8,0.7674]
[1748294460163,8.96138,2557.7,2557.0,0.7674]
[1748294460664,0.92438,2557.7,2557.0,0.7674]
[1748294460999,8.037,2557.6,2557.0,0.7674]
[1748294461792,4.127,2557.5,2557.0,0.7674]
[1748294461975,3.91,2557.4,2557.0,0.7674]
[1748294462170,3.91,2557.4,2557.2,0.7674]
[1748294462409,9.2438,2557.8,2557.2,0.7674]
[1748294462703,8.036,2557.7,2557.2,0.7674]
[1748294463065,8.446,2557.8,2557.2,0.7674]
[1748294463260,4.126,2557.7,2557.4,0.8148]
[1748294463491,8.035,2557.7,2557.4,0.8148]
[1748294463692,1.96661571,2558.2,2557.5,4.10161333]
[1748294463863,3.909,2558.1,2557.4,4.91641333]
[1748294464396,1.96661571,2558.2,2557.4,4.91641333]
[1748294464700,3.909,2558.0,2557.4,4.91641333]
[1748294464895,3.909,2558.0,2557.4,0.8148]
[1748294465110,0.39578659,2557.9,2557.4,0.8148]
[1748294465979,0.7817,2558.0,2557.5,0.03909675]
[1748294466184,8.035,2557.9,2557.4,0.8148]
[1748294467282,2.74831571,2558.2,2557.4,0.8148]
[1748294467505,8.035,2558.1,2557.4,4.91641333]
[1748294467714,1.96661571,2558.2,2557.6,4.10161333]
[1748294467896,4.126,2558.1,2557.7,0.8063]
[1748294468101,8.035,2558.1,2557.7,0.8063]
[1748294468824,0.3906769,2558.8,2557.7,0.8063]
[1748294468825,3.909,2558.2,2557.7,0.8063]
[1748294469320,8.55,2558.8,2557.9,0.7574]
[1748294469321,3.909,2558.4,2557.9,0.7574]
[1748294469624,0.7509,2558.8,2557.9,0.7574]
[1748294469786,4.126,2558.7,2558.1,0.7574]
[1748294469988,3.909,2558.6,2558.1,0.7574]
[1748294470220,3.909,2558.7,2558.1,0.7574]
[1748294470825,1.3009,2558.6,2557.7,0.7574]
[1748294471001,1.34975312,2558.6,2557.7,0.7574]
[1748294471200,0.93603665,2558.5,2557.7,0.7574]
[1748294472091,0.93603665,2558.5,2557.7,8.7574]
[1748294472427,0.93603665,2558.5,2557.8,0.7825]
[1748294475295,1.3009,2558.6,2557.8,0.7825]
[1748294476524,4.126,2558.8,2557.8,0.7825]
[1748294476525,3.908,2558.5,2557.8,0.7825]
[1748294480832,0.55,2558.4,2557.2,8.0]
[1748294481037,0.55,2558.4,2557.3,0.76]
[1748294481245,0.55,2558.2,2557.3,0.76]
[1748294481433,4.122,2558.1,2557.3,0.76]
[1748294481634,3.908,2558.0,2557.3,0.76]
[1748294486556,4.122,2558.1,2557.3,0.76]
[1748294486755,3.908,2558.0,2557.3,0.76]
[1748294487765,0.757,2557.9,2557.3,0.76]
[1748294488679,1.0165,2557.8,2557.3,0.76]
[1748294488845,1.0165,2557.8,2556.8,0.7709]
[1748294489047,1.0165,2557.8,2556.8,8.7709]
[1748294490306,0.757,2557.6,2556.8,0.7709]
[1748294490494,3.908,2557.5,2556.8,0.7709]
[1748294490778,4.122,2557.4,2556.8,0.7709]
[1748294491022,5.0007,2557.4,2556.8,0.7709]
[1748294492016,0.04888125,2557.3,2556.8,0.7709]
[1748294492297,1.355,2557.2,2556.5,0.7673]
[1748294510545,0.62407568,2557.9,2557.0,4.10161333]
[1748294510747,0.62407568,2557.9,2557.5,0.818]
[1748294511709,0.62407568,2557.9,2557.7,0.7955]
[1748294512216,4.122,2558.2,2557.7,0.7955]
[1748294512621,8.031,2558.2,2557.7,0.7955]
[1748294513363,1.96661571,2558.5,2558.1,0.7955]
[1748294513525,1.96661571,2558.5,2558.4,0.7955]
[1748294513955,1.96661571,2558.5,2558.4,8.7955]
[1748294517835,0.1,2558.9,2558.4,8.7955]
[1748294518035,0.1,2558.9,2558.5,4.10161333]
[1748294518467,0.1,2558.9,2558.6,0.8163]
[1748294518764,0.1,2558.9,2558.8,4.10161333]
[1748294518938,0.1,2558.9,2558.6,4.91791333]
[1748294522769,0.1,2558.9,2558.6,0.8163]
[1748294524545,0.1,2558.9,2558.6,8.8163]
[1748294528073,0.1,2558.9,2558.8,8.0]
[1748294528264,0.1,2558.9,2558.8,8.7799]
[1748294530583,0.1,2558.9,2558.8,0.7799]
[1748294536486,0.1,2558.9,2558.7,8.0]
[1748294537690,0.1,2558.9,2558.8,0.83387293]
[1748294537876,0.1,2558.9,2558.8,0.7948]
[1748294538890,0.1,2558.9,2558.8,1.16530723]
[1748294543572,0.1,2558.9,2558.8,13.26692056]
[1748294544166,0.1,2558.9,2558.8,12.47212056]
[1748294544370,0.1,2558.9,2558.8,13.29722056]
[1748294545303,0.1,2558.9,2558.8,17.20530247]
[1748294546309,0.1,2558.9,2558.8,17.81570248]
[1748294546687,0.1,2558.9,2558.8,13.90762057]